[Event "Live Chess"]
[Site "Chess.com"]
[Date "2023.09.16"]
[Round "-"]
[White "vitinho_lawliet"]
[Black "abaakate"]
[Result "0-1"]
[WhiteElo "924"]
[BlackElo "1916"]
[TimeControl "900+5"]
[EndTime "7:31:12 PDT"]
[Termination "abaakate venceu por xeque-mate"]

1. e4 {[%clk 0:15:00.7]} 1... c5 {[%clk 0:15:03]} 2. Nf3 {[%clk 0:15:03.5]} 2...
Nc6 {[%clk 0:15:05.5]} 3. Nc3 {[%clk 0:15:06.8]} 3... e6 {[%clk 0:15:05]} 4. e5
{[%clk 0:15:10.3]} 4... Qc7 {[%clk 0:14:57.3]} 5. Bc4 {[%clk 0:15:12.2]} 5...
Nxe5 {[%clk 0:14:59.1]} 6. Nxe5 {[%clk 0:15:13]} 6... Qxe5+ {[%clk 0:15:04]} 7.
Ne2 {[%clk 0:15:14.2]} 7... d5 {[%clk 0:15:06.2]} 8. Bb5+ {[%clk 0:15:15.9]}
8... Bd7 {[%clk 0:15:07.3]} 9. Bxd7+ {[%clk 0:15:19.7]} 9... Kxd7 {[%clk
0:15:12]} 10. O-O {[%clk 0:15:23.1]} 10... Nf6 {[%clk 0:15:14.4]} 11. c3 {[%clk
0:15:25.5]} 11... Bd6 {[%clk 0:15:16.5]} 12. d4 {[%clk 0:15:28.9]} 12... Qxh2#
{[%clk 0:15:20]} 0-1

[Event "Live Chess"]
[Site "Chess.com"]
[Date "2023.09.16"]
[Round "-"]
[White "maylso"]
[Black "KauaShelby015"]
[Result "1-0"]
[WhiteElo "1434"]
[BlackElo "1273"]
[TimeControl "900+5"]
[EndTime "7:31:17 PDT"]
[Termination "maylso venceu por desistência"]

1. d4 {[%clk 0:15:01.6]} 1... d5 {[%clk 0:15:01.9]} 2. c4 {[%clk 0:15:05.7]}
2... c6 {[%clk 0:14:56.3]} 3. Nf3 {[%clk 0:15:08.3]} 3... Nf6 {[%clk 0:14:59.6]}
4. Nc3 {[%clk 0:15:11.8]} 4... Bf5 {[%clk 0:14:59.2]} 5. Bf4 {[%clk 0:15:15.2]}
5... Nbd7 {[%clk 0:14:47.3]} 6. e3 {[%clk 0:15:13.5]} 6... Nh5 {[%clk
0:14:42.2]} 7. Bg3 {[%clk 0:15:12.6]} 7... Nxg3 {[%clk 0:14:44.1]} 8. fxg3
{[%clk 0:15:17.5]} 8... e6 {[%clk 0:14:46.8]} 9. Be2 {[%clk 0:15:18.8]} 9... Bb4
{[%clk 0:14:47.8]} 10. a3 {[%clk 0:15:15.8]} 10... Bxc3+ {[%clk 0:14:49.9]} 11.
bxc3 {[%clk 0:15:20.7]} 11... O-O {[%clk 0:14:50.3]} 12. Bd3 {[%clk 0:15:21.8]}
12... Bxd3 {[%clk 0:14:49.5]} 13. Qxd3 {[%clk 0:15:26.7]} 13... Rc8 {[%clk
0:14:50.1]} 14. O-O {[%clk 0:15:29.7]} 14... c5 {[%clk 0:14:52]} 15. cxd5 {[%clk
0:15:25.9]} 15... exd5 {[%clk 0:14:54.7]} 16. Rab1 {[%clk 0:15:19]} 16... c4
{[%clk 0:14:55.3]} 17. Qf5 {[%clk 0:15:12.7]} 17... g6 {[%clk 0:14:39.8]} 18.
Qxd5 {[%clk 0:15:01]} 18... Re8 {[%clk 0:14:42.4]} 19. Ne5 {[%clk 0:14:58.9]}
19... Nxe5 {[%clk 0:14:44.8]} 20. Qxd8 {[%clk 0:14:57.9]} 20... Rcxd8 {[%clk
0:14:39.9]} 21. dxe5 {[%clk 0:14:57.2]} 21... Rxe5 {[%clk 0:14:42.7]} 22. Rxb7
{[%clk 0:14:51.3]} 22... Red5 {[%clk 0:14:46.8]} 23. Rxa7 {[%clk 0:14:44.5]}
23... R8d7 {[%clk 0:14:32.5]} 24. Rxd7 {[%clk 0:14:39.1]} 24... Rxd7 {[%clk
0:14:34.7]} 25. a4 {[%clk 0:14:33.3]} 25... Rd3 {[%clk 0:14:34.9]} 26. Rc1
{[%clk 0:14:33.6]} 26... Rxe3 {[%clk 0:14:38.2]} 27. Kf2 {[%clk 0:14:38]} 27...
Re6 {[%clk 0:14:40.1]} 28. Rb1 {[%clk 0:14:29.8]} 28... Ra6 {[%clk 0:14:41.5]}
29. Rb4 {[%clk 0:14:33.9]} 29... Rc6 {[%clk 0:14:35.2]} 30. Ke3 {[%clk
0:14:35.9]} 30... Kf8 {[%clk 0:14:38.8]} 31. Kd4 {[%clk 0:14:38.6]} 31... Ke7
{[%clk 0:14:38.6]} 32. Rxc4 {[%clk 0:14:42.1]} 32... Rxc4+ {[%clk 0:14:38.1]}
33. Kxc4 {[%clk 0:14:47]} 33... Kd6 {[%clk 0:14:41.3]} 34. Kb5 {[%clk
0:14:34.6]} 34... Kd5 {[%clk 0:14:44]} 35. c4+ {[%clk 0:14:38.7]} 35... Kd6
{[%clk 0:14:47.5]} 36. Kb6 {[%clk 0:14:42]} 1-0

[Event "Live Chess"]
[Site "Chess.com"]
[Date "2023.09.16"]
[Round "-"]
[White "Francisco_Ferrari"]
[Black "Froidastics"]
[Result "1-0"]
[WhiteElo "2178"]
[BlackElo "1970"]
[TimeControl "900+5"]
[EndTime "7:31:33 PDT"]
[Termination "Francisco_Ferrari venceu por desistência"]

1. e4 {[%clk 0:15:03.1]} 1... c5 {[%clk 0:15:03.9]} 2. Nf3 {[%clk 0:15:06.5]}
2... d6 {[%clk 0:15:08.2]} 3. d4 {[%clk 0:15:08.5]} 3... cxd4 {[%clk 0:15:13.1]}
4. Nxd4 {[%clk 0:15:12.6]} 4... Nf6 {[%clk 0:15:17.2]} 5. Nc3 {[%clk 0:15:17.2]}
5... a6 {[%clk 0:15:21.6]} 6. h3 {[%clk 0:15:21.7]} 6... e5 {[%clk 0:15:25.9]}
7. Nf3 {[%clk 0:15:26.1]} 7... Be6 {[%clk 0:15:30.2]} 8. Bg5 {[%clk 0:15:28.9]}
8... Be7 {[%clk 0:15:34.5]} 9. Bxf6 {[%clk 0:15:22.8]} 9... Bxf6 {[%clk
0:15:37.5]} 10. Nd5 {[%clk 0:15:26.9]} 10... Nd7 {[%clk 0:15:24.8]} 11. Bc4
{[%clk 0:15:18.4]} 11... b5 {[%clk 0:15:17.8]} 12. Bb3 {[%clk 0:15:18.6]} 12...
Rc8 {[%clk 0:14:25.2]} 13. O-O {[%clk 0:14:57.1]} 13... O-O {[%clk 0:14:18.7]}
14. a4 {[%clk 0:14:53.4]} 14... Bxd5 {[%clk 0:13:41]} 15. Bxd5 {[%clk
0:14:48.2]} 15... bxa4 {[%clk 0:13:23.8]} 16. Rxa4 {[%clk 0:14:49.8]} 16... Nb6
{[%clk 0:13:26.1]} 17. Rxa6 {[%clk 0:14:45.5]} 17... Nxd5 {[%clk 0:13:29.3]} 18.
Qxd5 {[%clk 0:14:41.3]} 18... Rxc2 {[%clk 0:13:08.5]} 19. Rxd6 {[%clk
0:14:44.2]} 19... Qb8 {[%clk 0:11:58.2]} 20. Nxe5 {[%clk 0:12:32.6]} 20... Bxe5
{[%clk 0:10:51.8]} 21. Qxe5 {[%clk 0:12:35.2]} 21... Rd2 {[%clk 0:08:58.4]} 22.
Rd5 {[%clk 0:12:13.7]} 22... Qxe5 {[%clk 0:08:08.5]} 23. Rxe5 {[%clk 0:12:18.6]}
23... Rxb2 {[%clk 0:08:12.3]} 24. Rd1 {[%clk 0:12:20.2]} 24... g6 {[%clk
0:07:45.3]} 25. Rd7 {[%clk 0:12:19]} 25... Rc8 {[%clk 0:07:36.2]} 26. Ree7
{[%clk 0:12:20.1]} 26... Rc1+ {[%clk 0:07:38.9]} 27. Kh2 {[%clk 0:12:13.8]}
27... Rxf2 {[%clk 0:07:43]} 28. Rd3 {[%clk 0:11:49.4]} 28... Rcc2 {[%clk
0:06:43.3]} 29. Rg3 {[%clk 0:11:50.4]} 29... Rfe2 {[%clk 0:06:41]} 30. Ra7
{[%clk 0:09:36.3]} 30... Rxe4 {[%clk 0:06:20.9]} 31. Rf3 {[%clk 0:09:12.2]}
31... f5 {[%clk 0:05:50.7]} 32. Rd3 {[%clk 0:08:59.2]} 32... Re8 {[%clk
0:05:27.9]} 33. Rdd7 {[%clk 0:08:58.5]} 33... Rb2 {[%clk 0:04:29.2]} 34. Rg7+
{[%clk 0:08:51.4]} 34... Kh8 {[%clk 0:04:22.1]} 35. Rxh7+ {[%clk 0:08:52.4]}
35... Kg8 {[%clk 0:04:26.6]} 36. Rhg7+ {[%clk 0:08:49.8]} 36... Kh8 {[%clk
0:04:30.1]} 37. Rxg6 {[%clk 0:08:44.2]} 37... Rbe2 {[%clk 0:04:15]} 38. Rgg7
{[%clk 0:07:58.8]} 38... R2e4 {[%clk 0:03:56.8]} 39. Rgf7 {[%clk 0:07:36.3]}
39... f4 {[%clk 0:03:35.1]} 40. h4 {[%clk 0:07:39.2]} 40... f3 {[%clk
0:03:04.7]} 41. Rh7+ {[%clk 0:07:34]} 41... Kg8 {[%clk 0:03:06.9]} 42. gxf3
{[%clk 0:07:31.9]} 42... Re2+ {[%clk 0:03:00.8]} 43. Kg3 {[%clk 0:07:34.7]}
43... Re1 {[%clk 0:02:58.1]} 44. h5 {[%clk 0:07:03.8]} 44... Rg1+ {[%clk
0:02:45.6]} 45. Kf2 {[%clk 0:07:06.7]} 45... Rh1 {[%clk 0:02:31.9]} 46. h6
{[%clk 0:07:05.3]} 1-0

[Event "Live Chess"]
[Site "Chess.com"]
[Date "2023.09.16"]
[Round "-"]
[White "zxsimon"]
[Black "fernanndodod"]
[Result "1/2-1/2"]
[WhiteElo "1487"]
[BlackElo "1951"]
[TimeControl "900+5"]
[EndTime "7:31:36 PDT"]
[Termination "Partida empatada por acordo"]

1. e4 {[%clk 0:15:02.9]} 1... e5 {[%clk 0:15:04]} 2. Nf3 {[%clk 0:15:05.7]} 2...
Nc6 {[%clk 0:15:08.3]} 3. Bc4 {[%clk 0:15:09.3]} 3... Bc5 {[%clk 0:15:12.2]} 4.
Nc3 {[%clk 0:15:10.6]} 4... Nf6 {[%clk 0:15:16.2]} 5. d3 {[%clk 0:15:14.5]} 5...
d6 {[%clk 0:15:19.8]} 6. h3 {[%clk 0:15:17.3]} 6... Be6 {[%clk 0:15:24]} 7. Bg5
{[%clk 0:15:18.2]} 7... Bxc4 {[%clk 0:15:26.4]} 8. dxc4 {[%clk 0:15:20.1]} 8...
h6 {[%clk 0:15:31]} 9. Bh4 {[%clk 0:15:23.6]} 9... g5 {[%clk 0:15:35]} 10. Bg3
{[%clk 0:15:27.5]} 10... Qe7 {[%clk 0:15:38.6]} 11. Nd5 {[%clk 0:15:30]} 11...
Nxd5 {[%clk 0:15:42.3]} 12. cxd5 {[%clk 0:15:33.1]} 12... Nd4 {[%clk 0:15:45.8]}
13. Nxd4 {[%clk 0:15:35.3]} 13... Bxd4 {[%clk 0:15:50.7]} 14. c3 {[%clk
0:15:39.2]} 14... Bb6 {[%clk 0:15:54.2]} 15. Qd2 {[%clk 0:15:36.2]} 15... O-O-O
{[%clk 0:15:55.7]} 16. a4 {[%clk 0:15:37.9]} 16... a6 {[%clk 0:15:56.7]} 17. b4
{[%clk 0:15:41.4]} 17... h5 {[%clk 0:15:58.2]} 18. f3 {[%clk 0:15:41.7]} 18...
g4 {[%clk 0:15:58.7]} 19. b5 {[%clk 0:15:32.8]} 19... a5 {[%clk 0:16:00.8]} 20.
Bf2 {[%clk 0:15:35.4]} 20... Bxf2+ {[%clk 0:15:58.9]} 21. Qxf2 {[%clk
0:15:38.5]} 21... Kb8 {[%clk 0:15:25.2]} 22. b6 {[%clk 0:15:30.8]} 22... gxf3
{[%clk 0:15:15.5]} 23. gxf3 {[%clk 0:15:31.6]} 23... Rc8 {[%clk 0:15:13.4]} 24.
Rb1 {[%clk 0:15:33.9]} 24... f5 {[%clk 0:15:12.2]} 25. exf5 {[%clk 0:15:32.9]}
25... e4 {[%clk 0:15:13.2]} 26. f4 {[%clk 0:15:32]} 26... Qf6 {[%clk 0:15:11.2]}
27. Qd4 {[%clk 0:15:29.1]} 27... Qxf5 {[%clk 0:15:09.5]} 28. bxc7+ {[%clk
0:15:27.4]} 28... Rxc7 {[%clk 0:15:14.4]} 29. Qxh8+ {[%clk 0:15:28.2]} 1/2-1/2

[Event "Live Chess"]
[Site "Chess.com"]
[Date "2023.09.16"]
[Round "-"]
[White "mary260210"]
[Black "KiwiDoFbi"]
[Result "1-0"]
[WhiteElo "902"]
[BlackElo "1287"]
[TimeControl "900+5"]
[EndTime "7:32:17 PDT"]
[Termination "mary260210 venceu por desistência"]

1. d4 {[%clk 0:15:02.4]} 1... e5 {[%clk 0:15:03.3]} 2. dxe5 {[%clk 0:15:06.1]}
2... Nc6 {[%clk 0:15:06.3]} 3. Nf3 {[%clk 0:15:07.8]} 3... Qe7 {[%clk
0:15:08.8]} 4. Bg5 {[%clk 0:15:10.2]} 4... Qb4+ {[%clk 0:15:11]} 5. c3 {[%clk
0:15:08.2]} 5... Qxb2 {[%clk 0:15:13.3]} 6. Nbd2 {[%clk 0:15:06.9]} 6... Qxc3
{[%clk 0:15:08.9]} 7. Rc1 {[%clk 0:14:57]} 7... Qa3 {[%clk 0:14:56.5]} 8. Nc4
{[%clk 0:14:57.7]} 8... Bb4+ {[%clk 0:14:48.4]} 9. Bd2 {[%clk 0:14:55]} 9...
Bxd2+ {[%clk 0:14:51.4]} 10. Qxd2 {[%clk 0:14:58]} 10... Qe7 {[%clk 0:14:30.6]}
11. e4 {[%clk 0:14:52.4]} 11... Nh6 {[%clk 0:14:30]} 12. Bd3 {[%clk 0:14:55.8]}
12... Ng4 {[%clk 0:14:31.4]} 13. Qf4 {[%clk 0:14:46.6]} 13... d6 {[%clk
0:14:25.6]} 14. exd6 {[%clk 0:14:42.6]} 14... cxd6 {[%clk 0:14:01.5]} 15. Nxd6+
{[%clk 0:14:44]} 1-0

[Event "Live Chess"]
[Site "Chess.com"]
[Date "2023.09.16"]
[Round "-"]
[White "zezemito921"]
[Black "Megruo988"]
[Result "0-1"]
[WhiteElo "920"]
[BlackElo "1710"]
[TimeControl "900+5"]
[EndTime "7:32:31 PDT"]
[Termination "Megruo988 venceu por xeque-mate"]

1. e4 {[%clk 0:15:03.7]} 1... e5 {[%clk 0:15:03.7]} 2. Bc4 {[%clk 0:15:06.7]}
2... Nf6 {[%clk 0:15:06.6]} 3. Nf3 {[%clk 0:15:09.5]} 3... Nc6 {[%clk
0:15:09.6]} 4. d3 {[%clk 0:15:12.3]} 4... Be7 {[%clk 0:15:13.7]} 5. O-O {[%clk
0:15:12.7]} 5... O-O {[%clk 0:15:18.1]} 6. c3 {[%clk 0:15:09.1]} 6... d5 {[%clk
0:15:17.2]} 7. exd5 {[%clk 0:15:08.1]} 7... Nxd5 {[%clk 0:14:48.8]} 8. Re1
{[%clk 0:15:05.7]} 8... Bg4 {[%clk 0:14:46.3]} 9. Nbd2 {[%clk 0:14:59.9]} 9...
Na5 {[%clk 0:14:31]} 10. h3 {[%clk 0:14:59.3]} 10... Bh5 {[%clk 0:14:29.3]} 11.
g4 {[%clk 0:14:59.2]} 11... Bg6 {[%clk 0:14:31]} 12. Rxe5 {[%clk 0:14:57.7]}
12... Nxc4 {[%clk 0:14:34]} 13. dxc4 {[%clk 0:14:56.7]} 13... Nf4 {[%clk
0:14:27.6]} 14. Kh2 {[%clk 0:14:36.7]} 14... Bd6 {[%clk 0:14:27]} 15. Rb5 {[%clk
0:14:25.4]} 15... Bd3 {[%clk 0:13:16.2]} 16. Nb3 {[%clk 0:14:16.4]} 16... Bxc4
{[%clk 0:13:14.6]} 17. Rf5 {[%clk 0:14:11.3]} 17... Ne2+ {[%clk 0:12:52.8]} 18.
Kg2 {[%clk 0:14:05.6]} 18... Re8 {[%clk 0:12:21]} 19. Nbd4 {[%clk 0:13:43.3]}
19... Nxd4 {[%clk 0:12:12.8]} 20. Qxd4 {[%clk 0:13:30.3]} 20... Be6 {[%clk
0:12:04.8]} 21. Rg5 {[%clk 0:13:15.8]} 21... f6 {[%clk 0:11:31.6]} 22. Rb5
{[%clk 0:12:57.6]} 22... c5 {[%clk 0:11:02]} 23. Qa4 {[%clk 0:12:32.7]} 23...
Bd7 {[%clk 0:10:53.2]} 24. Qc4+ {[%clk 0:12:26.1]} 24... Kh8 {[%clk 0:10:38.8]}
25. Rxb7 {[%clk 0:12:25]} 25... Bc6 {[%clk 0:10:33]} 26. Rb3 {[%clk 0:12:13.2]}
26... Qe7 {[%clk 0:10:14.2]} 27. Bd2 {[%clk 0:12:04.7]} 27... Qe5 {[%clk
0:10:09.5]} 28. Re1 {[%clk 0:10:30.6]} 28... Qh2+ {[%clk 0:10:11.1]} 29. Kf1
{[%clk 0:10:31.6]} 29... Qh1+ {[%clk 0:10:03.3]} 30. Ng1 {[%clk 0:10:13.6]}
30... Bg2# {[%clk 0:10:08.2]} 0-1

[Event "Live Chess"]
[Site "Chess.com"]
[Date "2023.09.16"]
[Round "-"]
[White "Abofado"]
[Black "kslusk"]
[Result "0-1"]
[WhiteElo "573"]
[BlackElo "854"]
[TimeControl "900+5"]
[EndTime "7:32:58 PDT"]
[Termination "kslusk venceu por xeque-mate"]

1. e4 {[%clk 0:14:55.7]} 1... e6 {[%clk 0:15:04]} 2. Nf3 {[%clk 0:14:57.7]} 2...
d5 {[%clk 0:15:08]} 3. exd5 {[%clk 0:15:00.1]} 3... exd5 {[%clk 0:15:12.2]} 4.
d4 {[%clk 0:15:04.9]} 4... Nc6 {[%clk 0:15:14.6]} 5. Ng5 {[%clk 0:15:06.7]} 5...
g6 {[%clk 0:14:52.9]} 6. Qf3 {[%clk 0:15:09.1]} 6... Be6 {[%clk 0:14:54.1]} 7.
Nc3 {[%clk 0:15:09.3]} 7... Be7 {[%clk 0:14:48.5]} 8. Nxe6 {[%clk 0:15:12]} 8...
fxe6 {[%clk 0:14:50.2]} 9. Ne2 {[%clk 0:15:09.6]} 9... Nf6 {[%clk 0:14:49]} 10.
Nf4 {[%clk 0:15:13.1]} 10... Qd6 {[%clk 0:14:46.2]} 11. Nxe6 {[%clk 0:14:57.7]}
11... Qxe6+ {[%clk 0:14:47.9]} 12. Be3 {[%clk 0:15:00.4]} 12... O-O {[%clk
0:14:45.5]} 13. Be2 {[%clk 0:14:50.9]} 13... Ng4 {[%clk 0:14:48.1]} 14. Qh3
{[%clk 0:14:42.6]} 14... h5 {[%clk 0:14:38.3]} 15. Bh6 {[%clk 0:14:37.5]} 15...
Nxd4 {[%clk 0:14:28.7]} 16. O-O-O {[%clk 0:14:25.1]} 16... Nxe2+ {[%clk
0:14:21.6]} 17. Kb1 {[%clk 0:14:20.2]} 17... Qf5 {[%clk 0:13:56.5]} 18. Rde1
{[%clk 0:14:19.2]} 18... Nxh6 {[%clk 0:13:50]} 19. Rxe2 {[%clk 0:14:19.5]} 19...
Qxh3 {[%clk 0:13:52.1]} 20. gxh3 {[%clk 0:14:22.6]} 20... Nf5 {[%clk 0:13:55.2]}
21. Rxe7 {[%clk 0:14:25.6]} 21... Nxe7 {[%clk 0:13:57.8]} 22. Re1 {[%clk
0:14:28.7]} 22... Rae8 {[%clk 0:13:58]} 23. f4 {[%clk 0:14:31.7]} 23... Rxf4
{[%clk 0:14:00.2]} 24. a3 {[%clk 0:14:32.4]} 24... Rf2 {[%clk 0:14:02.4]} 25.
Rxe7 {[%clk 0:14:35]} 25... Rxe7 {[%clk 0:14:06]} 26. Ka2 {[%clk 0:14:39.9]}
26... Rxh2 {[%clk 0:14:09.5]} 27. Kb3 {[%clk 0:14:43]} 27... Rxh3+ {[%clk
0:14:13.8]} 28. Kb4 {[%clk 0:14:47.9]} 28... Rh2 {[%clk 0:14:15.6]} 29. Kc5
{[%clk 0:14:51.2]} 29... Rxc2+ {[%clk 0:14:18.6]} 30. Kxd5 {[%clk 0:14:55.9]}
30... Rxb2 {[%clk 0:14:22.4]} 31. Kc5 {[%clk 0:14:59.6]} 31... h4 {[%clk
0:14:25]} 32. Kd5 {[%clk 0:15:04.5]} 32... h3 {[%clk 0:14:29.1]} 33. Kc5 {[%clk
0:15:09.4]} 33... h2 {[%clk 0:14:33.3]} 34. Kd5 {[%clk 0:15:14.3]} 34... h1=Q+
{[%clk 0:14:36.5]} 35. Kc5 {[%clk 0:15:19.2]} 35... Qc1+ {[%clk 0:14:39.3]} 36.
Kd5 {[%clk 0:15:24.1]} 36... Qc6+ {[%clk 0:14:41.9]} 37. Kd4 {[%clk 0:15:24.2]}
37... Rd2# {[%clk 0:14:45.8]} 0-1

[Event "Live Chess"]
[Site "Chess.com"]
[Date "2023.09.16"]
[Round "-"]
[White "Torugomilho11"]
[Black "z_anne_ari"]
[Result "1-0"]
[WhiteElo "1145"]
[BlackElo "1257"]
[TimeControl "900+5"]
[EndTime "7:33:07 PDT"]
[Termination "Torugomilho11 venceu por desistência"]

1. d4 {[%clk 0:15:03.1]} 1... Nf6 {[%clk 0:15:03.3]} 2. Bf4 {[%clk 0:15:05.6]}
2... g6 {[%clk 0:15:07.4]} 3. e3 {[%clk 0:15:09.4]} 3... Bg7 {[%clk 0:15:11.6]}
4. Nf3 {[%clk 0:15:13.4]} 4... O-O {[%clk 0:15:15.8]} 5. Nbd2 {[%clk 0:15:17.7]}
5... d6 {[%clk 0:15:20.2]} 6. c3 {[%clk 0:15:21.8]} 6... Nbd7 {[%clk 0:15:21.8]}
7. Bd3 {[%clk 0:15:11.5]} 7... Nh5 {[%clk 0:15:25.3]} 8. Bg3 {[%clk 0:14:46.3]}
8... e5 {[%clk 0:15:28.1]} 9. dxe5 {[%clk 0:14:37.3]} 9... dxe5 {[%clk
0:15:28.3]} 10. Qe2 {[%clk 0:14:37.3]} 10... Nxg3 {[%clk 0:15:16.8]} 11. hxg3
{[%clk 0:14:40.3]} 11... h5 {[%clk 0:15:21.3]} 12. O-O-O {[%clk 0:14:39.3]}
12... Nc5 {[%clk 0:15:22.8]} 13. Bc2 {[%clk 0:14:29.4]} 13... Bg4 {[%clk
0:15:21.7]} 14. Ne4 {[%clk 0:14:21.3]} 14... Nxe4 {[%clk 0:15:23.9]} 15. Rxd8
{[%clk 0:14:23.7]} 15... Raxd8 {[%clk 0:15:26.9]} 16. Bxe4 {[%clk 0:14:27.4]}
1-0

[Event "Live Chess"]
[Site "Chess.com"]
[Date "2023.09.16"]
[Round "-"]
[White "ABC2009V"]
[Black "Riquelme_Leonardo"]
[Result "1-0"]
[WhiteElo "2005"]
[BlackElo "1675"]
[TimeControl "900+5"]
[EndTime "7:33:42 PDT"]
[Termination "ABC2009V venceu por desistência"]

1. e4 {[%clk 0:15:03.9]} 1... c5 {[%clk 0:15:02.4]} 2. Nf3 {[%clk 0:15:08.2]}
2... Nc6 {[%clk 0:15:06.6]} 3. d4 {[%clk 0:15:08.7]} 3... cxd4 {[%clk
0:15:10.5]} 4. Nxd4 {[%clk 0:15:13.3]} 4... e5 {[%clk 0:15:15.3]} 5. Nb5 {[%clk
0:15:15.8]} 5... Qa5+ {[%clk 0:15:16.2]} 6. Bd2 {[%clk 0:15:06.5]} 6... Bb4
{[%clk 0:15:16.4]} 7. N1c3 {[%clk 0:14:34.6]} 7... a6 {[%clk 0:15:14.9]} 8. Na3
{[%clk 0:14:23.5]} 8... Bxa3 {[%clk 0:15:17.2]} 9. bxa3 {[%clk 0:14:26.8]} 9...
Qxa3 {[%clk 0:15:21.4]} 10. Nd5 {[%clk 0:14:04.2]} 10... Nge7 {[%clk 0:15:19]}
11. Nc7+ {[%clk 0:13:57.8]} 11... Kd8 {[%clk 0:15:17.4]} 12. Nxa8 {[%clk
0:14:01]} 12... Qa4 {[%clk 0:14:59.5]} 13. Bd3 {[%clk 0:13:35.8]} 13... d5
{[%clk 0:14:49.9]} 14. Nb6 {[%clk 0:13:31.7]} 14... Qd4 {[%clk 0:14:50.4]} 15.
Nxc8 {[%clk 0:13:14.1]} 15... Kxc8 {[%clk 0:14:54.1]} 16. O-O {[%clk 0:12:45.5]}
16... dxe4 {[%clk 0:14:53.6]} 17. Be3 {[%clk 0:12:44.9]} 17... Qd6 {[%clk
0:14:52.4]} 18. Bxe4 {[%clk 0:12:39.6]} 1-0

[Event "Live Chess"]
[Site "Chess.com"]
[Date "2023.09.16"]
[Round "-"]
[White "lucasbezerraja"]
[Black "Ggavioli"]
[Result "1/2-1/2"]
[WhiteElo "1791"]
[BlackElo "1558"]
[TimeControl "900+5"]
[EndTime "7:34:09 PDT"]
[Termination "Partida empatada - material insuficiente"]

1. e4 {[%clk 0:15:03.8]} 1... c6 {[%clk 0:15:02.2]} 2. d4 {[%clk 0:15:07.2]}
2... d5 {[%clk 0:15:06.8]} 3. e5 {[%clk 0:15:12.1]} 3... Bf5 {[%clk 0:15:10.5]}
4. Bd3 {[%clk 0:15:16.6]} 4... Bxd3 {[%clk 0:15:14.8]} 5. Qxd3 {[%clk
0:15:21.5]} 5... e6 {[%clk 0:15:17.2]} 6. Nf3 {[%clk 0:15:24.8]} 6... Nd7 {[%clk
0:15:21.6]} 7. Bf4 {[%clk 0:15:24.9]} 7... Ne7 {[%clk 0:15:24.4]} 8. c4 {[%clk
0:15:24.2]} 8... Nb6 {[%clk 0:15:26]} 9. cxd5 {[%clk 0:15:12.5]} 9... Nbxd5
{[%clk 0:15:28.8]} 10. Bd2 {[%clk 0:15:10.7]} 10... Nf5 {[%clk 0:15:24.1]} 11.
Nc3 {[%clk 0:15:07]} 11... Bb4 {[%clk 0:15:14.5]} 12. Nxd5 {[%clk 0:15:07.6]}
12... Bxd2+ {[%clk 0:15:17.9]} 13. Qxd2 {[%clk 0:15:09.3]} 13... Qxd5 {[%clk
0:15:16.8]} 14. O-O {[%clk 0:15:08.3]} 14... O-O {[%clk 0:15:19.4]} 15. Rac1
{[%clk 0:15:12]} 15... Rad8 {[%clk 0:15:18.4]} 16. Rfd1 {[%clk 0:15:09.6]} 16...
b6 {[%clk 0:14:47.8]} 17. b4 {[%clk 0:14:52.2]} 17... Rd7 {[%clk 0:14:35.5]} 18.
Qc3 {[%clk 0:14:19.4]} 18... Rc8 {[%clk 0:14:06.9]} 19. h3 {[%clk 0:12:59.2]}
19... h6 {[%clk 0:14:00.3]} 20. Qc2 {[%clk 0:12:58.4]} 20... Qb5 {[%clk
0:13:39.5]} 21. Qb3 {[%clk 0:12:20.1]} 21... c5 {[%clk 0:12:48.8]} 22. bxc5
{[%clk 0:12:03.4]} 22... Qxb3 {[%clk 0:12:48.9]} 23. axb3 {[%clk 0:12:07.2]}
23... bxc5 {[%clk 0:12:52.3]} 24. dxc5 {[%clk 0:12:09.4]} 24... Rxd1+ {[%clk
0:12:55.4]} 25. Rxd1 {[%clk 0:12:14]} 25... Rxc5 {[%clk 0:12:59.1]} 26. Rd7
{[%clk 0:12:01.3]} 26... a5 {[%clk 0:12:57.7]} 27. g4 {[%clk 0:12:00.2]} 27...
Rc3 {[%clk 0:12:43.1]} 28. Kg2 {[%clk 0:11:46.2]} 28... Rxb3 {[%clk 0:12:14.1]}
29. gxf5 {[%clk 0:11:49.2]} 29... exf5 {[%clk 0:12:17.9]} 30. Rd8+ {[%clk
0:11:05.1]} 30... Kh7 {[%clk 0:12:19.6]} 31. Rd7 {[%clk 0:11:07.8]} 31... Kg8
{[%clk 0:12:02.9]} 32. Rd1 {[%clk 0:11:00.5]} 32... a4 {[%clk 0:12:04.3]} 33.
Nd4 {[%clk 0:10:58.7]} 33... Rb4 {[%clk 0:11:55.4]} 34. Nxf5 {[%clk 0:10:57.2]}
34... a3 {[%clk 0:11:59]} 35. Ra1 {[%clk 0:10:18.3]} 35... Ra4 {[%clk
0:11:52.1]} 36. Ne3 {[%clk 0:10:15.2]} 36... Kf8 {[%clk 0:11:48.1]} 37. Nc2
{[%clk 0:10:03.1]} 37... a2 {[%clk 0:11:47.7]} 38. Kf3 {[%clk 0:09:54.5]} 38...
Ke7 {[%clk 0:11:49.5]} 39. Ne3 {[%clk 0:09:38]} 39... Ke6 {[%clk 0:11:52.5]} 40.
Nd1 {[%clk 0:09:23.3]} 40... Ra3+ {[%clk 0:11:53.2]} 41. Ke4 {[%clk 0:09:17.8]}
41... Rxh3 {[%clk 0:11:29.9]} 42. Rxa2 {[%clk 0:09:20.6]} 42... Rh4+ {[%clk
0:11:33.1]} 43. f4 {[%clk 0:09:23.6]} 43... g5 {[%clk 0:11:30]} 44. Ra6+ {[%clk
0:09:26.5]} 44... Ke7 {[%clk 0:11:33.6]} 45. Ra7+ {[%clk 0:09:26.1]} 45... Ke6
{[%clk 0:11:31.6]} 46. Ra6+ {[%clk 0:09:12.5]} 46... Ke7 {[%clk 0:11:34.5]} 47.
Rf6 {[%clk 0:09:17.1]} 47... gxf4 {[%clk 0:11:18.6]} 48. Rxf4 {[%clk 0:09:21]}
48... Rxf4+ {[%clk 0:11:16.2]} 49. Kxf4 {[%clk 0:09:25.9]} 49... Ke6 {[%clk
0:11:20.1]} 50. Nf2 {[%clk 0:09:29.5]} 50... f6 {[%clk 0:11:23.3]} 51. exf6
{[%clk 0:09:24.2]} 51... Kxf6 {[%clk 0:11:28.2]} 52. Ng4+ {[%clk 0:09:28.8]}
52... Kg6 {[%clk 0:11:31.6]} 53. Nxh6 {[%clk 0:09:33.7]} 1/2-1/2